Cogmind - Beta 11.1 @@@ ROGUE MODE // 2022.06.01 @ 20:17:02 Player: Exp. Geonium Core Result: Destroyed by B-36 Bruiser with Hammer Performance ------------- Evolutions (1) 500 Regions Visited (4) 800 Robots Destroyed (28) 140 Value Destroyed (679) 679 Prototype IDs (0) 0 Alien Tech Used (0) 0 Bonus (-197) -197 TOTAL SCORE: 1922 Bonus ------- Friendly Fire -197 Cogmind --------- Core Integrity 0/400 Matter 267/300 Energy 86/100 System Corruption 1% Temperature Cool (0) Movement Core (100) Ox1 Location -9/Mines Parts ------- > --- POWER (1) -------- (None) > --- PROPULSION (2) --- (None) > --- UTILITY (4) ------ Improved Power Shielding > --- WEAPON (2) ------- Light Assault Rifle Heavy Assault Rifle > --- INVENTORY (5) ---- Light Ion Engine Improved Heat Sink High-capacity Storage Unit Axe Peak State ------------ > --- POWER ------------ Light Ion Engine > --- PROPULSION ------- Light Treads Light Treads > --- UTILITY ---------- High-capacity Storage Unit Improved Targeting Computer Improved Power Shielding Light Armor Plating > --- WEAPON ----------- Plasma Cutter Axe > --- INVENTORY -------- Light Ion Engine Improved Ion Engine Carbon-fiber Leg Heat Sink Improved Heat Sink Beam Rifle Light Assault Rifle Light Assault Rifle Heavy Assault Rifle [Rating: 16] Favorites ----------- Power Light Ion Engine Engine Light Ion Engine Power Core Light Nuclear Core Propulsion Light Treads Treads Light Treads Leg Carbon-fiber Leg Utility High-capacity Storage Unit Storage High-capacity Storage Unit Processor Improved Targeting Computer Protection Light Armor Plating Weapon Assault Rifle Ballistic Gun Assault Rifle Special Weapon Plasma Cutter Slashing Weapon Axe Build | -11 -10 -10 -9 -9 ------- Run | Scr Mat Min Mat Min Slots Evolved 2 | . . . 2 . Power . | . . . . . Propulsion . | . . . . . Utility 2 | . . . 2 . Weapon . | . . . . . Parts Attached 31 | . 6 3 19 3 Power 4 | . . 2 2 . Engine 3 | . . 1 2 . Core 1 | . . 1 . . Reactor . | . . . . . Propulsion 6 | . 2 . 4 . Treads 4 | . 2 . 2 . Leg 2 | . . . 2 . Wheel . | . . . . . Hover . | . . . . . Flight . | . . . . . Utility 10 | . 2 1 7 . Device . | . . . . . Storage 3 | . 1 . 2 . Processor 2 | . . . 2 . Hackware . | . . . . . Protection 5 | . 1 1 3 . Artifact . | . . . . . Weapon 11 | . 2 . 6 3 Energy Gun . | . . . . . Energy Cannon . | . . . . . Ballistic Gun 8 | . 2 . 4 2 Ballistic Cannon . | . . . . . Launcher . | . . . . . Special Weapon 1 | . . . 1 . Impact Weapon . | . . . . . Slashing Weapon 2 | . . . 1 1 Piercing Weapon . | . . . . . Special Melee Weapon . | . . . . . Unidentified Prototypes . | . . . . . Parts Lost 18 | . 1 4 12 1 Power 2 | . . 1 1 . Propulsion 5 | . . 1 4 . Utility 6 | . 1 1 3 1 Weapon 5 | . . 1 4 . Highest Loss Streak 4 | . 1 4 4 1 To Critical Strikes . | . . . . . Average Slot Usage (%) 87 | . 95 94 65 35 Engine 10 | . 14 5 9 . Core 2 | . . 7 . . Treads 22 | . 25 27 9 . Leg 1 | . 2 . 3 . Storage 11 | . 14 13 5 . Processor 2 | . . . 8 8 Protection 10 | . 10 10 12 11 Ballistic Gun 23 | . 28 27 11 11 Naked Turns . | . . . . . Heaviest Build 52 | 11 50 52 52 5 Greatest Support 40 | 20 40 40 40 3 Greatest Overweight (x) 2 | . 1 1 2 1 Average Overweight (x) . | . . . . 1 Largest Inventory Capacity 20 | . 20 20 20 5 Average Capacity 17 | . 17 19 13 5 Most Carried 19 | . 10 19 10 5 Average Carried 10 | . 8 16 5 4 Final Capacity 20 | 8 20 5 5 5 Final Carried 10 | 6 10 5 5 4 Class Distribution -------------------- 92% | Mutant 7% | Scavenger-Mutant Dominant Class ---------------- Mutant | -10/Materials Mutant | -10/Mines Mutant | -9/Materials Mutant | -9/Mines Resources | -11 -10 -10 -9 -9 ----------- Run | Scr Mat Min Mat Min Matter Collected 922 | 200 191 249 282 . Remotely . | . . . . . Salvage Created 954 | . 323 39 558 34 Parts 57 | . 16 6 33 2 Haulers Intercepted . | . . . . . Recyclers Shooed 2 | . . . 2 . Parts Field Recycled . | . . . . . Retrieved Matter . | . . . . . Parts Self-Destructed . | . . . . . Prevented . | . . . . . Kills | -11 -10 -10 -9 -9 ------- Run | Scr Mat Min Mat Min Combat Hostiles Destroyed 24 | . 7 3 13 1 Melee 5 | . . . 4 1 Guns 19 | . 7 3 9 . Classes Destroyed 6 | . 2 1 3 . Worker 1 | . . . 1 . Recycler 1 | . . . 1 . Operator 1 | . 1 . . . Swarmer 9 | . . 3 6 . Grunt 12 | . 7 . 4 1 Sentry 3 | . . . 3 . Thug 1 | . . . 1 . Best Kill Streak 5 | . 3 2 5 1 Combat Bots Only 4 | . 3 2 4 1 Max Kills in Single Turn 1 | . 1 1 1 1 Gunslinging . | . . . . . Exploded . | . . . . . Melee 1 | . . . 1 1 Uniques/NPCs Destroyed . | . . . . . Combat | -11 -10 -10 -9 -9 -------- Run | Scr Mat Min Mat Min Damage Taken 2370 | . 410 505 1351 104 Core 558 | . 52 100 344 62 Absorbed by Shields . | . . . . . Redirected to Shielding 87 | . . . 87 . Core Remaining (%) 69 | 100 . 39 . . Volleys Fired 85 | . 26 9 48 2 Largest 2 | . 2 2 2 2 Hottest 43 | . 40 40 40 43 Shots Fired 146 | . 52 17 73 4 Gun 142 | . 52 17 69 4 Cannon . | . . . . . Launcher . | . . . . . Special 4 | . . . 4 . Kinetic 142 | . 52 17 69 4 Thermal 4 | . . . 4 . Explosive . | . . . . . Electromagnetic . | . . . . . Robot Hit Streak 16 | . 16 3 13 2 Robot Miss Streak 5 | . 2 2 5 1 Penetration Max . | . . . . . Secondary Targets . | . . . . . Shots Hit Robots 104 | . 38 7 53 6 Core Hits 46 | . 17 3 24 2 Critical Kills . | . . . . . Critical Parts Destroyed . | . . . . . Critical Strikes 3 | . . . 1 2 Sever 3 | . . . 1 2 Melee Attacks 20 | . . . 15 5 Impact . | . . . . . Slashing 20 | . . . 15 5 Piercing . | . . . . . Sneak Attacks 1 | . . . 1 . Combat Hostiles . | . . . . . Follow-up Attacks . | . . . . . Damage Inflicted 1688 | . 489 89 953 157 Guns 1059 | . 489 89 445 36 Cannons . | . . . . . Explosions 97 | . . . 97 . Melee 508 | . . . 387 121 Ramming . | . . . . . Kinetic 1059 | . 489 89 445 36 Thermal 24 | . . . 24 . Explosive 97 | . . . 97 . Electromagnetic . | . . . . . Impact . | . . . . . Slashing 508 | . . . 387 121 Piercing . | . . . . . Highest Corruption 1 | . . . . 1 Average Corruption 1 | . . . . 1 Corruption Purged . | . . . . . Corruption Blocked . | . . . . . Overload Shots . | . . . . . Overflow Damage 41 | . . . 41 . Projectiles . | . . . . . Explosions . | . . . . . Melee 41 | . . . 41 . Knockbacks . | . . . . . Impact . | . . . . . Kinetic . | . . . . . Secondary . | . . . . . Self-Inflicted Damage 93 | . . . 93 . Shots 1 | . . . 1 . Rammed . | . . . . . Targets Rammed . | . . . . . Kicked . | . . . . . Crushed . | . . . . . Highest Temperature 8 | . 4 . 8 . Average Temperature 2 | . 2 . 3 . Received Heat Transfer 703 | . 210 40 429 24 Siege Activations . | . . . . . Robots Corrupted . | . . . . . Combat Hostiles . | . . . . . Parts Fried . | . . . . . Impact Corruptions . | . . . . . Robots Melted . | . . . . . Combat Hostiles . | . . . . . Parts Melted . | . . . . . Heat Transferred 74 | . . . 74 . Parts Sabotaged . | . . . . . Parts Stolen . | . . . . . Parts Stripped . | . . . . . Power Chain Reactions . | . . . . . Missiles Intercepted . | . . . . . Alert | -11 -10 -10 -9 -9 ------- Run | Scr Mat Min Mat Min Peak Influence 349 | . 158 105 349 95 Initial 75 | . . 20 . 75 Average 96 | . 69 54 197 80 Maximum Alert Level 1 | . . . 1 . Low Security (%) 90 | . 100 100 60 100 Level 1 9 | . . . 39 . Level 2 . | . . . . . Level 3 . | . . . . . Level 4 . | . . . . . Level 5 . | . . . . . High Security . | . . . . . Max Security . | . . . . . Squads Dispatched 7 | . 5 1 1 . Investigation 6 | . 4 1 1 . Extermination . | . . . . . Reinforcement 1 | . 1 . . . Assault . | . . . . . Garrison . | . . . . . Intercept . | . . . . . Searches Triggered . | . . . . . Construction Impeded . | . . . . . Haulers Reinforced . | . . . . . Active Scanning Responses . | . . . . . Cargo Convoy Interrupts . | . . . . . Stealth | -11 -10 -10 -9 -9 --------- Run | Scr Mat Min Mat Min Distress Signals 3 | . 2 . 1 . Communications Jammed . | . . . . . Distress Signals . | . . . . . Times Spotted 57 | . 12 22 21 2 Peak Tracking Total 15 | . 3 15 5 2 Tactical Retreats 2 | . . 1 1 . Traps | -11 -10 -10 -9 -9 ------- Run | Scr Mat Min Mat Min Traps Triggered 2 | . 2 . . . Indirectly . | . . . . . Trap Hack Attempts . | . . . . . Triggered . | . . . . . Disarmed . | . . . . . Reprogrammed . | . . . . . Reused . | . . . . . Traps Extracted . | . . . . . Installed . | . . . . . Triggered . | . . . . . Machines | -11 -10 -10 -9 -9 ---------- Run | Scr Mat Min Mat Min Machines Disabled 1 | . . . 1 . Max in Single Turn 1 | . . . 1 . Machines Sabotaged . | . . . . . Garrisons Compromised . | . . . . . Overloaded Fab Kills . | . . . . . Hacking | -11 -10 -10 -9 -9 --------- Run | Scr Mat Min Mat Min Machines Accessed 9 | . 6 1 2 . Terminals 6 | . 4 . 2 . Fabricators . | . . . . . Repair Stations . | . . . . . Recycling Units 2 | . 2 . . . Scanalyzers . | . . . . . Garrison Access . | . . . . . Total Hacks 26 | . 18 1 7 . Successful 14 | . 9 1 4 . Failed 11 | . 8 . 3 . Catastrophic 1 | . 1 . . . Database Lockouts 1 | . 1 . . . Manual 21 | . 14 . 7 . Terminals 23 | . 16 . 7 . Fabricators . | . . . . . Repair Stations . | . . . . . Recycling Units 2 | . 2 . . . Scanalyzers . | . . . . . Garrison Access . | . . . . . Terminal Hacks 7 | . 5 1 1 . Robot Analysis 1 | . 1 . . . Open Door 1 | . . 1 . . Branch Access Points 1 | . 1 . . . Terminal Index 2 | . 1 . 1 . Locate Traps 1 | . 1 . . . Hauler Manifests 1 | . 1 . . . Fabricator Hacks . | . . . . . Repair Station Hacks . | . . . . . Recycling Unit Hacks . | . . . . . Scanalyzer . | . . . . . Garrison Access Hacks . | . . . . . Unauthorized Hacks 7 | . 4 . 3 . Terminals 5 | . 2 . 3 . Operators 3 | . 1 . 2 . Search 2 | . 1 . 1 . Fabricators . | . . . . . Repair Stations . | . . . . . Recycling Units 2 | . 2 . . . Tunnel 2 | . 2 . . . Scanalyzers . | . . . . . Garrison Access . | . . . . . Data Cores Recovered . | . . . . . Used . | . . . . . Hacking Detections 5 | . 4 . 1 . Full Trace Events 2 | . 2 . . . Feedback Events . | . . . . . Feedback Blocked . | . . . . . Robot Schematics Acquired . | . . . . . Robots Built . | . . . . . Authchips . | . . . . . Time . | . . . . . Total Robot Build Rating . | . . . . . Part Schematics Acquired . | . . . . . Parts Built . | . . . . . Authchips . | . . . . . Time . | . . . . . Total Part Build Rating . | . . . . . Parts Repaired . | . . . . . Time . | . . . . . Parts Recycled . | . . . . . Recycled Matter . | . . . . . Retrieved Matter . | . . . . . Retrieved Components . | . . . . . Parts Scanalyzed . | . . . . . Part Schematics Acquired . | . . . . . Parts Damaged . | . . . . . Bothacking | -11 -10 -10 -9 -9 ------------ Run | Scr Mat Min Mat Min Used RIF Installer . | . . . . . Robots Hacked . | . . . . . Non-combat . | . . . . . Combat . | . . . . . Robot Hacks Applied . | . . . . . Relay Couplers Released . | . . . . . Fabnet Peak Effective % . | . . . . . Robots Rewired . | . . . . . Allies Hacked . | . . . . . Hacks Repelled . | . . . . . Allies | -11 -10 -10 -9 -9 -------- Run | Scr Mat Min Mat Min Total Allies 1 | . . 1 . . Largest Group 1 | . . 1 . . Highest-Rated Group 31 | . . 31 . . Highest-Rated Ally 31 | . . 31 . . Total Orders . | . . . . . Ally Attacks 1 | . . 1 . . Total Damage . | . . . . . Kills . | . . . . . Allies Corrupted . | . . . . . Allies Melted . | . . . . . Intel | -11 -10 -10 -9 -9 ------- Run | Scr Mat Min Mat Min Robot Analysis Total 1 | . 1 . . . Derelict Logs Recovered . | . . . . . Drone Launches . | . . . . . Drone Recoveries . | . . . . . Exploration | -11 -10 -10 -9 -9 ------------- Run | Scr Mat Min Mat Min Turns Passed 2302 | . 1069 646 550 37 Spaces Moved 888 | 1 412 262 201 12 Core 79 | . . 13 54 12 Treads 695 | . 360 249 86 . Legs 114 | 1 52 . 61 . Wheels . | . . . . . Hover . | . . . . . Flight . | . . . . . Fastest Speed 50 | 120 120 50 50 100 Average Speed 208 | 120 221 230 161 100 Slowest Speed 320 | 120 240 240 320 100 Overloaded Moves . | . . . . . Propulsion Burnouts . | . . . . . Robots Hopped . | . . . . . Cave-ins Triggered . | . . . . . Exploration Rate (%) 29 | 2 66 55 20 4 Regions Visited 4 Branch Regions 2 Pre-discovered Areas 2 | . 2 . . . Known Exits Taken 1 | . 1 . . . Unknown Exits Taken 3 | 1 . 1 1 . Scrap Searched 1 | . . 1 . . Spaces Dug . | . . . . . Terrain Destroyed 22 | . . . 22 . Melee . | . . . . . Projectile . | . . . . . AOE 22 | . . . 22 . Terrain Rammed . | . . . . . Walls Destroyed . | . . . . . Machines Disabled . | . . . . . Actions | -11 -10 -10 -9 -9 --------- Run | Scr Mat Min Mat Min Total 1158 | . 518 286 330 24 Wait 96 | . 62 . 33 1 Move 884 | . 411 261 200 12 Hop . | . . . . . Pick Up 27 | . 7 10 10 . Fast Attach 11 | . 2 1 8 . Attach 12 | . . 1 10 1 Detach 3 | . . . 3 . Swap 8 | . 4 1 1 2 Drop 12 | . 6 3 2 1 Fire 85 | . 26 9 48 2 Melee 20 | . . . 15 5 Ram . | . . . . . Kick . | . . . . . Crush . | . . . . . Escape Stasis . | . . . . . Rewire . | . . . . . Trap . | . . . . . Miscellaneous . | . . . . . Route ------- -11/Scrapyard -10/Materials (discovered 3 exits: *Mat x2 / *Min) -10/Mines (discovered 2 exits: *Mat x2) -9/Materials -9/Mines History --------- Turn | Location | Event 1 | -11/Scrapyard | Discovered new exit (range 0) 1 | -11/Scrapyard | Entered Materials 208 | -10/Materials | Identified exit to Mines 268 | -10/Materials | Discovered new exit (range 16) 305 | -10/Materials | Build established: Mutant 611 | -10/Materials | Discovered new exit (range 15) 800 | -10/Materials | Central database locked down 1070 | -10/Materials | Entered Mines 1163 | -10/Mines | Met a Derelict bent on vengeance 1176 | -10/Mines | Met a Derelict shopkeep closing up shop 1573 | -10/Mines | Discovered new exit (range 3) 1574 | -10/Mines | Escorted by a lone wolf Derelict 1613 | -10/Mines | Discovered new exit (range 5) 1681 | -10/Mines | Assembled infested the area 1686 | -10/Mines | Assisted by a Guerilla fighting off Assembled 1709 | -10/Mines | Core integrity fell below 50% 1716 | -10/Mines | Entered Materials 1716 | -9/Materials | Evolved 2 slots: Utility x2 1740 | -9/Materials | Lost 4 parts (1p1n1u1w) 1894 | -9/Materials | Core integrity fell below 50% 1915 | -9/Materials | Lost 4 parts (1n1u2w) 2244 | -9/Materials | Lost 4 parts (2n1u1w) 2255 | -9/Materials | Core integrity fell below 20% 2256 | -9/Materials | Discovered new exit (range 5) 2266 | -9/Materials | Entered Mines 2303 | -9/Mines | Destroyed by B-36 Bruiser with Hammer Last Messages --------------- 02226_ K-01 Serf collects debris. 02228_ Acquired 2 matter. 02235_ R-06 Scavenger destroyed. 02236_ Acquired 2 matter. 02256_ EXIT=FOUND 02258_ Lgt. Treads destroyed. 02259_ Dropped Hcp. Storage Unit. 02260_ Dropped Beam Rifle. 02260_ Acquired Hcp. Storage Unit. 02264_ Lgt. Ion Engine destroyed. LOCATION=UNKNOWN GOAL=ESCAPE Something is scanning the area. 02267_ K-01 Serf collects debris. 02279_ Dropped Lgt. Assault Rifle. 02281_ G-34 Mercenary Aluminum Leg severed. 02291_ G-34 Mercenary destroyed. 02298_ Imp. Targeting Computer destroyed. 02298_ System corrupted by crushing effect (+1). 02298_ Knocked back. Map ----- +----------------------------------------------------+ | ??????????????????????????????????????? | | ??????????????????????????????????????? | | ??????????????????????????????????????? | | ??????????????????????????????????????? | | ??????????????????????????????????????? | | ??????????????????????????????????????? | | ??????????????????????????????????????? | | ??????????????????????????????????????? | | ??????????????????????????????????????? | | ??????????????????????????????????????? | | ??????????????????????????????????????? | | ??????????????????????????????????????? | | ??????????????????????????????????????? | | ??????????????????????????????????????? | | ?????????????????????????????##???????? | | ????????????????????????????? ???????? | | ????????????????????????????? ???????? | | ???????????????????????????## ???????? | | ???????????????????????????# ????????? | | ??????????????????????????? ????????? | | ???????????????????????????# ????????? | | ???????????????????????????# ????????? | | ???????????????????????????# #????????? | | ???????????????????????????#%#????????? | | ???????????????????????#####=#????????? | | ???????????????????????# @b[=#????????? | | ???????????????????????# #####????????? | | ???????????????????????# #????????????? | | ?????????????????????### ##???????????? | | ?????????????????????# #???????????? | | ?????????????????????# #???????????? | | ?????????????????????# #???????????? | | ?????????????????????# #???????????? | | ?????????????????????# #???????????? | | ?????????????????????# #???????????? | | ?????????????????????# #???????????? | | ?????????????????????# #???????????? | | ?????????????????????######???????????? | | ??????????????????????????????????????? | | ??????????????????????????????????????? | | ??????????????????????????????????????? | | | | | | | | | | | | | | | | | | | +----------------------------------------------------+ Best States ------------- Heat Dissipation 28 Energy Generation 14 Energy Capacity 160 Matter Stores 300 Matter Capacity 300 Sight Range 16 Terrain Scan Density 10 Armor Coverage 150 Power Shielding 66 Evasion (%) 55 Targeting Accuracy 6 Recoil Reduction 2 Item Schematics ----------------- None Robot Schematics ------------------ None Fabricated ------------ Nothing Alien Tech Used ----------------- None Achievements -------------- None Challenges ------------ None Game ------ Seed TerrabombDataNetwork Manual? 0 Play Time 00:15:25 Cumulative 186.6 hours Start 2022.06.01 @ 19:48:55 End 2022.06.01 @ 20:17:02 Sessions 1 Manual Loads 0 Difficulty Rogue Special Mode None Game No. 259 Rogue 259 Adventurer 0 Explorer 0 Win Type - Total 10 Types 8/0/1/1/0/0/0/0/0 Lore% 57 Gallery% 77 Achievement% 67 Wizard Run 0 Options --------- ASCII 0 Keyboard 0 Movement Numpad Keybinds 0 Fullscreen 1 Font 18/Terminus Map View 76x50 Tactical HUD 1 Map Filters NONE Filters NONE Steam 1 RUN: 4c814153-027e-43b0-89b1-44bb2d5392a2